Cogmind - Beta 15 @@@ ROGUE MODE // 2025.07.08 @ 10:46:15 Player: abnormality Result: Self-destructed Performance ------------- Evolutions (1) 500 Regions Visited (2) 400 Robots Destroyed (18) 90 Value Destroyed (373) 373 Prototype IDs (0) 0 Alien Tech Used (0) 0 Bonus (0) 0 TOTAL SCORE: 1363 Bonus ------- None Cogmind --------- Core Integrity 324/400 Matter 242/300 Energy 250/250 System Corruption 1% Temperature Cool (0) Movement Treading (240) Ox1 Location -9/Materials Parts ------- > --- POWER (1) -------- Ion Engine > --- PROPULSION (3) --- Light Treads > --- UTILITY (3) ------ Large Storage Unit Improved Terrain Scanner Seismic Detector > --- WEAPON (2) ------- EM Shotgun > --- INVENTORY (15) --- Light Ion Engine Light Ion Engine Disposable Heat Sink Small Storage Unit Terrain Scan Processor Medium Armor Plating EM Shotgun Peak State ------------ > --- POWER ------------ Ion Engine > --- PROPULSION ------- Light Treads Light Treads > --- UTILITY ---------- Large Storage Unit Improved Terrain Scanner Seismic Detector > --- WEAPON ----------- EM Shotgun > --- INVENTORY -------- Light Ion Engine Light Ion Engine Disposable Heat Sink Small Storage Unit Terrain Scan Processor Medium Armor Plating EM Shotgun [Rating: 11] Favorites ----------- Power Ion Engine Engine Ion Engine Propulsion Light Treads Treads Light Treads Utility Seismic Detector Device Seismic Detector Storage Small Storage Unit Weapon Assault Rifle Energy Gun EM Shotgun Ballistic Gun Assault Rifle Launcher Grenade Launcher Build | -11 -10 -9 ------- Run | Yrd Mat Mat Slots Evolved 2 | . . 2 Power . | . . . Propulsion 1 | . . 1 Utility 1 | . . 1 Weapon . | . . . Parts Attached 13 | 6 4 3 Power 1 | 1 . . Engine 1 | 1 . . Core . | . . . Reactor . | . . . Propulsion 2 | 2 . . Treads 2 | 2 . . Leg . | . . . Wheel . | . . . Hover . | . . . Flight . | . . . Utility 6 | 1 3 2 Device 4 | 1 1 2 Storage 2 | . 2 . Processor . | . . . Hackware . | . . . Protection . | . . . Artifact . | . . . Weapon 4 | 2 1 1 Energy Gun 1 | . . 1 Energy Cannon . | . . . Ballistic Gun 2 | 2 . . Ballistic Cannon . | . . . Launcher 1 | . 1 . Special Weapon . | . . . Impact Weapon . | . . . Slashing Weapon . | . . . Piercing Weapon . | . . . Special Melee Weapon . | . . . Unidentified Prototypes . | . . . Parts Lost 6 | . 3 3 Power . | . . . Propulsion 1 | . . 1 Utility 2 | . 2 . Weapon 3 | . 1 2 Highest Loss Streak 2 | . 1 2 To Critical Strikes . | . . . Average Backups 5 | 2 5 8 Power 1 | . 1 2 Propulsion . | . . . Utility 2 | 1 2 5 Weapon . | . . 1 Tool/Special . | . . . Unused Backups 6 | . . 6 Power 2 | . . 2 Propulsion . | . . . Utility 3 | . . 3 Weapon 1 | . . 1 Tool/Special . | . . . Average Slot Usage (%) 91 | . 96 66 Engine 13 | . 14 11 Treads 26 | . 28 18 Device 12 | . 12 11 Storage 12 | . 12 11 Ballistic Gun 23 | . 25 11 Launcher 1 | . 2 . Peak Build Rating 11 | 6 8 11 Average Rating 7 | 5 7 8 On Entrance 4 | . 6 7 Naked Turns . | . . . Heaviest Build 30 | 10 29 30 Greatest Support 40 | 40 40 40 Greatest Overweight (x) 1 | . . 1 Average Overweight (x) . | . . . Largest Inventory Capacity 15 | 5 15 15 Average Capacity 8 | 5 7 15 Most Carried 10 | 5 8 10 Average Carried 5 | 2 5 8 Final Capacity 15 | 5 15 15 Final Carried 8 | 3 8 7 Class Distribution -------------------- 100% | Mutant Dominant Class ---------------- Mutant | -10/Materials Mutant | -9/Materials Resources | -11 -10 -9 ----------- Run | Yrd Mat Mat Matter Collected 653 | 320 196 137 Remotely . | . . . Salvage Created 559 | 133 247 179 Parts 40 | 11 21 8 Haulers Intercepted . | . . . Recyclers Shooed . | . . . Parts Field Recycled . | . . . Retrieved Matter . | . . . Parts Self-Destructed . | . . . Prevented . | . . . Kills | -11 -10 -9 ------- Run | Yrd Mat Mat Combat Hostiles Destroyed 8 | . 5 3 Guns 7 | . 4 3 AOE 1 | . 1 . Classes Destroyed 5 | 2 3 . Worker 3 | . 3 . Builder 1 | . 1 . Tunneler 4 | 3 1 . Recycler 2 | 1 . 1 Grunt 8 | . 5 3 Best Kill Streak 3 | 2 3 2 Combat Bots Only 2 | . 2 2 Max Kills in Single Turn 1 | 1 1 1 Gunslinging . | . . . Exploded 1 | . 1 . Melee . | . . . Uniques/NPCs Destroyed . | . . . Combat | -11 -10 -9 -------- Run | Yrd Mat Mat Hostile Shots Fired 66 | . 45 21 Missed 12 | . 9 3 Hits 54 | . 36 18 Projectile 54 | . 36 18 Critical Strikes 3 | . 3 . Part Disruptions 1 | . 1 . Damage Taken 836 | . 639 197 Core 182 | . 106 76 Absorbed by Shields . | . . . Core Remaining (%) 78 | 100 57 . Volleys Fired 80 | 10 51 19 Largest 2 | 2 2 2 Hottest 50 | 40 50 45 Shots Fired 119 | 20 78 21 Gun 110 | 20 69 21 Cannon . | . . . Launcher 9 | . 9 . Special . | . . . Kinetic 105 | 20 69 16 Thermal . | . . . Explosive 9 | . 9 . Electromagnetic 5 | . . 5 Robot Hit Streak 7 | 7 5 4 Robot Miss Streak 5 | 1 5 4 Penetration Max . | . . . Secondary Targets 1 | . 1 . Max Gunslinging Chain 1 | . 1 . Shots Hit Robots 63 | 15 33 15 Core Hits 33 | 5 21 7 Critical Kills . | . . . Critical Parts Destroyed 1 | . 1 . Critical Strikes 1 | . 1 . Destroy 1 | . 1 . Melee Attacks . | . . . Impact . | . . . Slashing . | . . . Piercing . | . . . Sneak Attacks . | . . . Combat Hostiles . | . . . Follow-up Attacks . | . . . Damage Inflicted 1291 | 199 848 244 Guns 742 | 199 370 173 Cannons . | . . . Explosions 549 | . 478 71 Melee . | . . . Ramming . | . . . Kinetic 693 | 199 370 124 Thermal 71 | . . 71 Explosive 463 | . 463 . Electromagnetic 64 | . 15 49 Impact . | . . . Slashing . | . . . Piercing . | . . . Highest Corruption 1 | . 1 1 Average Corruption 1 | . 1 1 Corruption Purged . | . . . Corruption Blocked . | . . . Effects 1 | . 1 . Data Loss (minor) 1 | . 1 . Overload Shots . | . . . Overflow Damage 35 | . 35 . Projectiles . | . . . Explosions 35 | . 35 . Melee . | . . . Knockbacks . | . . . Impact . | . . . Kinetic . | . . . Secondary . | . . . Self-Inflicted Damage 184 | . 184 . Shots 6 | . 6 . Rammed 1 | . . 1 Targets Rammed 1 | . . 1 Kicked . | . . . Crushed . | . . . Highest Temperature 36 | . 36 11 Average Temperature 9 | . 10 6 Received Heat Transfer 417 | . 309 108 Siege Activations . | . . . Martial Activations . | . . . Shielding Activations . | . . . Robots Disrupted . | . . . Combat Hostiles . | . . . Robots Corrupted . | . . . Combat Hostiles . | . . . Parts Fried . | . . . Impact Corruptions . | . . . Robots Melted . | . . . Combat Hostiles . | . . . Parts Melted . | . . . Heat Transferred 100 | . . 100 Parts Sabotaged . | . . . Parts Stolen . | . . . Parts Stripped . | . . . Power Chain Reactions 1 | . . 1 Alert | -11 -10 -9 ------- Run | Yrd Mat Mat Maximum Alert Level . | . . . Low Security (%) 100 | 100 100 100 Level 1 . | . . . Level 2 . | . . . Level 3 . | . . . Level 4 . | . . . Level 5 . | . . . High Security . | . . . Max Security . | . . . Peak Influence 99 | 10 99 30 Initial 9 | . . 9 Average 24 | . 32 13 Influence Increases 396 | 20 299 77 Destroy 0b10 Robot/C 160 | . 100 60 Destroy 0b10 Robot/NC 50 | 20 25 5 Destroy Leader 40 | . 30 10 Successful Hack 15 | . 15 . Disable Machine 60 | . 60 . Destroy Structure 71 | . 69 2 Influence Decreases 389 | 20 277 92 Entered New Map 13 | . . 13 Time Decay 336 | 20 247 69 Lost Part 40 | . 30 10 Squads Dispatched 4 | . 3 1 Investigation 2 | . 1 1 Extermination . | . . . Reinforcement 2 | . 2 . Assault . | . . . Garrison . | . . . Intercept . | . . . Searches Triggered . | . . . Construction Impeded . | . . . Haulers Reinforced . | . . . Active Scanning Responses . | . . . Cargo Convoy Interrupts . | . . . Stealth | -11 -10 -9 --------- Run | Yrd Mat Mat Distress Signals . | . . . Communications Jammed . | . . . Distress Signals . | . . . Times Spotted 17 | . 11 6 Peak Tracking Total 4 | . 3 4 Tactical Retreats . | . . . Traps | -11 -10 -9 ------- Run | Yrd Mat Mat Traps Triggered 1 | . 1 . Indirectly . | . . . Trap Hack Attempts . | . . . Triggered . | . . . Disarmed . | . . . Reprogrammed . | . . . Reused . | . . . Traps Extracted . | . . . Installed . | . . . Triggered . | . . . Machines | -11 -10 -9 ---------- Run | Yrd Mat Mat Machines Disabled 4 | . 4 . Max in Single Turn 2 | . 2 . Machines Repaired . | . . . Machines Dismantled . | . . . Machines Sabotaged . | . . . Overloaded Fab Kills . | . . . Hacking | -11 -10 -9 --------- Run | Yrd Mat Mat Machines Accessed 7 | . 6 1 Terminals 6 | . 6 . Fabricators . | . . . Repair Stations 1 | . . 1 Recycling Units . | . . . Scanalyzers . | . . . Garrison Access . | . . . Total Hacks 19 | . 17 2 Successful 11 | . 11 . Failed 8 | . 6 2 Catastrophic 3 | . 3 . Database Lockouts . | . . . Manual . | . . . Terminals 17 | . 17 . Fabricators . | . . . Repair Stations 2 | . . 2 Recycling Units . | . . . Scanalyzers . | . . . Garrison Access . | . . . Terminal Hacks 11 | . 11 . Record 3 | . 3 . Alert Level 2 | . 2 . Dispatch Records 1 | . 1 . Maintenance Status 1 | . 1 . Transport Status 1 | . 1 . Hauler Manifests 1 | . 1 . Zone Layout 2 | . 2 . Fabricator Hacks . | . . . Repair Station Hacks . | . . . Recycling Unit Hacks . | . . . Scanalyzer . | . . . Garrison Access Hacks . | . . . Unauthorized Hacks . | . . . Terminals . | . . . Fabricators . | . . . Repair Stations . | . . . Recycling Units . | . . . Scanalyzers . | . . . Garrison Access . | . . . Data Cores Recovered . | . . . Used . | . . . Hacking Detections 7 | . 6 1 Full Trace Events 4 | . 3 1 Feedback Events 1 | . . 1 Corruption 1 | . . 1 Feedback Blocked . | . . . Robot Schematics Acquired . | . . . Robots Built . | . . . Authchips . | . . . Time . | . . . Total Robot Build Rating . | . . . Part Schematics Acquired . | . . . Parts Built . | . . . Authchips . | . . . Time . | . . . Total Part Build Rating . | . . . Parts Repaired . | . . . Time . | . . . Parts Recycled . | . . . Recycled Matter . | . . . Retrieved Matter . | . . . Retrieved Components . | . . . Parts Scanalyzed . | . . . Part Schematics Acquired . | . . . Parts Damaged . | . . . Bothacking | -11 -10 -9 ------------ Run | Yrd Mat Mat Used RIF Installer . | . . . Robots Hacked . | . . . Non-combat . | . . . Combat . | . . . Robot Hacks Applied . | . . . Relay Couplers Released . | . . . Fabnet Peak Effective % . | . . . Robots Rewired . | . . . Allies Hacked . | . . . Hacks Repelled . | . . . Allies | -11 -10 -9 -------- Run | Yrd Mat Mat Total Allies . | . . . Largest Group . | . . . Highest-Rated Group . | . . . Highest-Rated Ally . | . . . Total Orders . | . . . Ally Attacks . | . . . Total Damage . | . . . Kills . | . . . Allies Corrupted . | . . . Allies Melted . | . . . Intel | -11 -10 -9 ------- Run | Yrd Mat Mat Active Infowar (turns) 845 | 100 654 91 Terrain 90 | . . 90 Seismic 845 | 100 654 91 Robot Analysis Total . | . . . Derelict Logs Recovered . | . . . Drone Launches . | . . . Drone Recoveries . | . . . Exploration | -11 -10 -9 ------------- Run | Yrd Mat Mat Turns Passed 1085 | 177 744 164 Spaces Moved 528 | 93 374 61 Core 14 | 14 . . Treads 514 | 79 374 61 Legs . | . . . Wheels . | . . . Hover . | . . . Flight . | . . . Fastest Speed 50 | 50 160 160 Average Speed 159 | 143 160 182 Slowest Speed 240 | 160 160 240 Overloaded Moves . | . . . Propulsion Burnouts . | . . . Robots Hopped . | . . . Potential Cave-ins . | . . . Cave-ins Triggered . | . . . Exploration Rate (%) 29 | 6 77 6 Regions Visited 2 Branch Regions . Pre-discovered Areas . | . . . Known Exits Taken . | . . . Unknown Exits Taken 2 | 1 1 . Scrap Searched . | . . . Spaces Dug 5 | . 5 . Terrain Destroyed 77 | . 76 1 Melee . | . . . Projectile . | . . . AOE 77 | . 76 1 Terrain Rammed . | . . . Walls Destroyed . | . . . Machines Disabled . | . . . Actions | -11 -10 -9 --------- Run | Yrd Mat Mat Total 650 | 117 441 92 Wait 10 | . 4 6 Move 526 | 92 373 61 Hop . | . . . Pick Up 19 | 9 8 2 Fast Attach . | . . . Attach 12 | 6 3 3 Detach . | . . . Swap 2 | . 2 . Drop . | . . . Fire 80 | 10 51 19 Melee . | . . . Ram . | . . . Kick . | . . . Crush 1 | . . 1 Escape Stasis . | . . . Rewire . | . . . Trap . | . . . Miscellaneous . | . . . Route ------- -11/Scrapyard -10/Materials (discovered 3 exits: *Mat x3) -9/Materials History --------- Turn | Location | Event 7 | -11/Scrapyard | Discovered new exit (range 16) 178 | -11/Scrapyard | Entered Materials 308 | -10/Materials | Build established: Mutant 438 | -10/Materials | Discovered new exit (range 4) 702 | -10/Materials | Discovered new exit (range 8) 905 | -10/Materials | Discovered new exit (range 4) 922 | -10/Materials | Entered another Materials area 922 | -9/Materials | Evolved 2 slots: Propulsion x1, Utility x1 1086 | -9/Materials | Self-destructed Last Messages --------------- 01014_ K-01 Serf collects debris. 01014_ U-05 Engineer works on Hadron Collector. 01018_ K-01 Serf collects debris. 01019_ U-05 Engineer works on Hadron Collector. 01033_ Assault Rifle destroyed. 01035_ Lgt. Treads destroyed. 01039_ Chain reaction triggered in Ion Engine. 01039_ R-06 Scavenger destroyed. 01041_ G-34 Mercenary destroyed. 01046_ U-05 Engineer builds a Door. 01048_ U-05 Engineer lays Concrete. 01051_ Acquired 55 matter. 01051_ U-05 Engineer builds a Wall. 01051_ U-05 Engineer lays Concrete. 01052_ K-01 Serf collects debris. 01053_ U-05 Engineer lays Concrete. 01068_ U-05 Engineer works on Hadron Collector. 01078_ U-05 Engineer completes Hadron Collector. 01081_ C-30 ARC bursts open, deploying its payload. 01081_ L-31 Rogue unfolds itself. Map ----- +----------------------------------------------------+ | ?????????????????????????????????????????????????? | | ?????????????????????????????????????????????????? | | ?????????????????????????????????????????????????? | | ?????????????????? ??????????????????????????????? | | ?????????????????????????#???????????????????????? | | ???????????????????????????#?????????????????????? | | ?????????????????????????????? ??????????????????? | | ?????????????????????????????????????????????????? | | ???????????????????????????? ??? ????????????????? | | ??????????????????????#???#?????? ???????????????? | | ???????#????????#???? ##########/##??????????????? | | ????????????????# ???? % #??????????????? | | ????????????????? ???? #??????????????? | | ?????????????????? ? ? u<<"" #??????????????? | | ????????????#?#####/#### g<